fUSD/lending_fUSD_20240616
["ID","MTS","AMOUNT","RATE_DAILY","PERIOD"]
[329607377,1718500323892,-500.0,0.00022465,3]
[329607378,1718500323905,-500.0,0.00022465,3]
[329607379,1718500323916,-500.0,0.00022465,3]
[329607380,1718500323930,-500.0,0.00022465,3]
[329607381,1718500323941,-500.0,0.00022465,3]
[329607382,1718500323954,-500.0,0.00022465,3]
[329607383,1718500323972,-500.0,0.00022465,3]
[329607384,1718500323998,-500.0,0.00022465,3]
[329607385,1718500324015,-500.0,0.00022465,3]
[329607386,1718500324028,-500.0,0.00022465,3]
[329607387,1718500324053,-250.12412543,0.00022465,3]
[329607388,1718500324068,-500.0,0.00022465,3]
[329607389,1718500324079,-500.0,0.00022465,3]
[329607390,1718500324090,-535.31592419,0.00022465,3]
[329607391,1718500324102,-388.30901851,0.00022465,3]
[329607392,1718500324136,-500.0,0.00022465,3]
[329607393,1718500324151,-748.14,0.00022465,3]
[329607394,1718500324163,-655.15,0.00022465,3]
[329607395,1718500324205,-500.0,0.00022465,3]
[329607396,1718500324218,-500.0,0.00022465,3]
[329607397,1718500324229,-500.0,0.00022465,3]
[329607398,1718500324242,-500.0,0.00022465,3]
[329607399,1718500324254,-500.0,0.00022465,3]
[329607400,1718500324283,-563.05322813,0.00022465,3]
[329607401,1718500324294,-500.0,0.00022465,3]
[329607402,1718500324305,-500.0,0.00022465,3]
[329607403,1718500324318,-500.0,0.00022465,3]
[329607404,1718500324333,-500.0,0.00022465,3]
[329607405,1718500324344,-500.0,0.00022465,3]
[329607406,1718500324355,-500.0,0.00022465,3]
[329607407,1718500324366,-500.0,0.00022465,3]
[329607408,1718500324378,-500.0,0.00022465,3]
[329607409,1718500324400,-760.7,0.00022465,3]
[329607410,1718500324422,-500.0,0.00022465,3]
[329607411,1718500324433,-500.0,0.00022465,3]
[329607412,1718500324444,-1169.16,0.00022465,3]
[329607413,1718500324455,-500.0,0.00022465,3]
[329607414,1718500324466,-500.0,0.00022465,3]
[329607415,1718500324476,-500.0,0.00022465,3]
[329607416,1718500324487,-500.0,0.00022465,3]
[329607417,1718500324499,-500.0,0.00022465,3]
[329607418,1718500324532,-720.96,0.00022465,3]
[329607419,1718500324543,-500.0,0.00022465,3]
[329607420,1718500324556,-500.0,0.00022465,3]
[329607421,1718500324569,-500.0,0.00022465,3]
[329607422,1718500324581,-500.0,0.00022465,3]
[329607423,1718500324594,-231.69,0.00022465,3]
[329607424,1718500324624,-500.0,0.00022465,3]
[329607425,1718500324641,-301.38012487,0.00022465,3]
[329607426,1718500324655,-500.0,0.00022465,3]
[329607427,1718500324675,-500.0,0.00022465,3]
[329607428,1718500324697,-500.0,0.00022465,3]
[329607429,1718500324715,-500.0,0.00022465,3]
[329607430,1718500324739,-500.0,0.00022465,3]
[329607431,1718500324804,-3731.93,0.00022465,3]
[329607432,1718500324820,-500.0,0.00022465,3]
[329607433,1718500324835,-500.0,0.00022465,3]
[329607434,1718500324851,-500.0,0.00022465,3]
[329607435,1718500324871,-500.0,0.00022465,3]
[329607436,1718500324894,-859.57,0.00022465,3]
[329607437,1718500324921,-500.0,0.00022465,3]
[329607438,1718500324934,-500.0,0.00022465,3]
[329607439,1718500324967,-500.0,0.00022465,3]
[329607440,1718500324979,-500.0,0.00022465,3]
[329607441,1718500325032,-500.0,0.00022465,3]
[329607442,1718500325045,-500.0,0.00022465,3]
[329607443,1718500325073,-500.0,0.00022465,3]
[329607444,1718500325088,-1002.64,0.00022465,3]
[329607445,1718500325102,-500.0,0.00022465,3]
[329607446,1718500325114,-500.0,0.00022465,3]
[329607447,1718500325125,-500.0,0.00022465,3]
[329607448,1718500325136,-500.0,0.00022465,3]
[329607449,1718500325146,-500.0,0.00022465,3]
[329607450,1718500325156,-500.0,0.00022465,3]
[329607451,1718500325168,-500.0,0.00022465,3]
[329607452,1718500325181,-500.0,0.00022465,3]
[329607453,1718500325198,-602.36,0.00022465,3]
[329607454,1718500325215,-500.0,0.00022465,3]
[329607455,1718500325236,-500.0,0.00022465,3]
[329607456,1718500325257,-311.95920115,0.00022465,3]
[329607457,1718500325293,-500.0,0.00022465,3]
[329607458,1718500325304,-500.0,0.00022465,3]
[329607459,1718500325320,-500.0,0.00022465,3]
[329607460,1718500325335,-21145.18,0.00022465,3]
[329607461,1718500325392,-500.0,0.00022465,3]
[329607462,1718500325403,-500.0,0.00022465,3]
[329607463,1718500325414,-500.0,0.00022465,3]
[329607464,1718500325425,-500.0,0.00022465,3]
[329607465,1718500325435,-500.0,0.00022465,3]
[329607466,1718500325455,-500.0,0.00022465,3]
[329607467,1718500325467,-500.0,0.00022465,3]
[329607468,1718500325483,-500.0,0.00022465,3]
[329607469,1718500325494,-500.0,0.00022465,3]
[329607470,1718500325505,-500.0,0.00022465,3]
[329607471,1718500325517,-518.94,0.00022465,3]
[329607472,1718500325536,-712.34,0.00022465,3]
[329607473,1718500325568,-500.0,0.00022465,3]
[329607474,1718500325579,-500.0,0.00022465,3]
[329607475,1718500325594,-500.0,0.00022465,3]
[329607476,1718500325615,-500.0,0.00022465,3]
[329607477,1718500325647,-500.0,0.00022465,3]
[329607478,1718500325657,-500.0,0.00022465,3]
[329607479,1718500325668,-500.0,0.00022465,3]
[329607480,1718500325680,-2102.22,0.00022465,3]
[329607481,1718500325692,-500.0,0.00022465,3]
[329607482,1718500325704,-508.31,0.00022465,3]
[329607483,1718500325718,-523.23122223,0.00022465,3]
[329607484,1718500325733,-500.0,0.00022465,3]
[329607485,1718500325743,-500.0,0.00022465,3]
[329607486,1718500325759,-500.0,0.00022465,3]
[329607487,1718500325778,-500.0,0.00022465,3]
[329607488,1718500325794,-500.0,0.00022465,3]
[329607489,1718500325805,-500.0,0.00022465,3]
[329607490,1718500325831,-627.6,0.00022465,3]
[329607491,1718500325842,-500.0,0.00022465,3]
[329607492,1718500325853,-971.94,0.00022465,3]
[329607493,1718500325865,-741.33,0.00022465,3]
[329607494,1718500325877,-500.0,0.00022465,3]
[329607495,1718500325888,-500.0,0.00022465,3]
[329607496,1718500325905,-500.0,0.00022465,3]
[329607497,1718500325916,-500.0,0.00022465,3]
[329607498,1718500325928,-500.0,0.00022465,3]
[329607499,1718500325941,-500.0,0.00022465,3]
[329607500,1718500325953,-1135.52,0.00022465,3]
[329607501,1718500325965,-500.0,0.00022465,3]
[329607502,1718500325977,-500.0,0.00022465,3]
[329607503,1718500325991,-500.0,0.00022465,3]
[329607504,1718500326003,-215.24307779,0.00022465,3]
[329607505,1718500326014,-689.57,0.00022465,3]
[329607506,1718500326026,-997.55,0.00022465,3]
[329607507,1718500326043,-500.0,0.00022465,3]
[329607508,1718500326055,-500.0,0.00022465,3]
[329607509,1718500326071,-500.0,0.00022465,3]
[329607510,1718500326081,-500.0,0.00022465,3]
[329607511,1718500326093,-500.0,0.00022465,3]
[329607512,1718500326111,-500.0,0.00022465,3]
[329607513,1718500326124,-500.0,0.00022465,3]
[329607514,1718500326137,-500.0,0.00022465,3]
[329607515,1718500326149,-500.0,0.00022465,3]
[329607516,1718500326166,-500.0,0.00022465,3]
[329607517,1718500326182,-1192.37,0.00022465,3]
[329607518,1718500326193,-500.0,0.00022465,3]
[329607519,1718500326219,-500.0,0.00022465,3]
[329607520,1718500326230,-500.0,0.00022465,3]
[329607521,1718500326247,-500.0,0.00022465,3]
[329607522,1718500326258,-500.0,0.00022465,3]
[329607523,1718500326270,-500.0,0.00022465,3]
[329607524,1718500326281,-500.0,0.00022465,3]
[329607525,1718500326293,-500.0,0.00022465,3]
[329607526,1718500326313,-500.0,0.00022465,3]
[329607527,1718500326328,-500.0,0.00022465,3]
[329607528,1718500326340,-500.0,0.00022465,3]
[329607529,1718500326357,-517.9,0.00022465,3]
[329607530,1718500326384,-1380.29,0.00022465,3]
[329607531,1718500326397,-500.0,0.00022465,3]
[329607532,1718500326409,-727.67,0.00022465,3]
[329607533,1718500326420,-500.0,0.00022465,3]
[329607534,1718500326431,-500.0,0.00022465,3]
[329607535,1718500326442,-500.0,0.00022465,3]
[329607536,1718500326453,-500.0,0.00022465,3]
[329607537,1718500326465,-500.0,0.00022465,3]
[329607538,1718500326482,-500.0,0.00022465,3]
[329607539,1718500326494,-500.0,0.00022465,3]
[329607540,1718500326511,-760.08,0.00022465,3]
[329607541,1718500326525,-500.0,0.00022465,3]
[329607542,1718500326553,-500.0,0.00022465,3]
[329607543,1718500326565,-670.39,0.00022465,3]
[329607544,1718500326582,-500.0,0.00022465,3]
[329607545,1718500326599,-500.0,0.00022465,3]
[329607546,1718500326614,-978.69,0.00022465,3]
[329607547,1718500326637,-1450.19,0.00022465,3]
[329607548,1718500326654,-500.0,0.00022465,3]
[329607549,1718500326670,-3963.04,0.00022465,3]
[329607550,1718500326683,-500.0,0.00022465,3]
[329607551,1718500326696,-500.0,0.00022465,3]
[329607552,1718500326720,-500.0,0.00022465,3]
[329607553,1718500326743,-500.0,0.00022465,3]
[329607554,1718500326772,-500.0,0.00022465,3]
[329607555,1718500326786,-500.0,0.00022465,3]
[329607556,1718500326806,-500.0,0.00022465,3]
[329607557,1718500326819,-520.79,0.00022465,3]
[329607558,1718500326857,-1580.68,0.00022465,3]
[329607559,1718500326869,-1369.1,0.00022465,3]
[329607560,1718500326887,-500.0,0.00022465,3]
[329607561,1718500326899,-896.3,0.00022465,3]
[329607562,1718500326910,-500.0,0.00022465,3]
[329607563,1718500327117,-500.0,0.00022465,3]
[329607564,1718500327129,-683.47,0.00022465,3]
[329607565,1718500327147,-792.53,0.00022465,3]
[329607566,1718500327158,-500.0,0.00022465,3]
[329607567,1718500327177,-1032.51,0.00022465,3]
[329607568,1718500327190,-1379.29,0.00022465,3]
[329607569,1718500327205,-500.0,0.00022465,3]
[329607570,1718500327218,-9030.29,0.00022465,3]
[329607571,1718500327232,-554.09,0.00022465,3]
[329607572,1718500327244,-500.0,0.00022465,3]
[329607573,1718500327257,-500.0,0.00022465,3]
[329607574,1718500327270,-500.0,0.00022465,3]
[329607575,1718500327291,-500.0,0.00022465,3]
[329607576,1718500327305,-500.0,0.00022465,3]
[329607577,1718500327334,-500.0,0.00022465,3]
[329607578,1718500327345,-3085.97,0.00022465,3]
[329607579,1718500327364,-500.0,0.00022465,3]
[329607580,1718500327379,-656.05,0.00022465,3]
[329607581,1718500327411,-500.0,0.00022465,3]
[329607582,1718500327426,-500.0,0.00022465,3]
[329607583,1718500327444,-2510.66,0.00022465,3]
[329607584,1718500327458,-500.0,0.00022465,3]
[329607585,1718500327472,-696.32,0.00022465,3]
[329607586,1718500327484,-500.0,0.00022465,3]
[329607587,1718500327507,-500.0,0.00022465,3]
[329607588,1718500327521,-1590.97,0.00022465,3]
[329607589,1718500327534,-500.0,0.00022465,3]
[329607590,1718500327549,-1276.21,0.00022465,3]
[329607591,1718500327563,-500.0,0.00022465,3]
[329607592,1718500327577,-500.0,0.00022465,3]
[329607593,1718500327587,-500.0,0.00022465,3]
[329607594,1718500327599,-500.0,0.00022465,3]
[329607595,1718500327609,-500.0,0.00022465,3]
[329607596,1718500327622,-530.37,0.00022465,3]
[329607597,1718500327657,-500.0,0.00022465,3]
[329607598,1718500327682,-500.0,0.00022465,3]
[329607599,1718500327696,-500.0,0.00022465,3]
[329607600,1718500327715,-897.84,0.00022465,3]
[329607601,1718500327737,-500.0,0.00022465,3]
[329607602,1718500327752,-500.0,0.00022465,3]
[329607603,1718500327775,-519.61,0.00022465,3]
[329607604,1718500327813,-500.0,0.00022465,3]
[329607605,1718500327840,-500.0,0.00022465,3]
[329607606,1718500327863,-500.0,0.00022465,3]
[329607607,1718500327892,-1380.6,0.00022465,3]
[329607608,1718500327920,-500.0,0.00022465,3]
[329607609,1718500327934,-500.0,0.00022465,3]
[329607610,1718500327946,-500.0,0.00022465,3]
[329607611,1718500327958,-1037.66,0.00022465,3]
[329607612,1718500327969,-500.0,0.00022465,3]
[329607613,1718500327982,-500.0,0.00022465,3]
[329607614,1718500327994,-500.0,0.00022465,3]
[329607615,1718500328013,-500.0,0.00022465,3]
[329607616,1718500328027,-675.28,0.00022465,3]
[329607617,1718500328043,-500.0,0.00022465,3]
[329607618,1718500328058,-500.0,0.00022465,3]
[329607619,1718500328069,-500.0,0.00022465,3]
[329607620,1718500328080,-500.0,0.00022465,3]
[329607621,1718500328093,-922.21,0.00022465,3]
[329607622,1718500328108,-500.0,0.00022465,3]
[329607623,1718500328127,-500.0,0.00022465,3]
[329607624,1718500328140,-500.0,0.00022465,3]
[329607625,1718500328150,-500.0,0.00022465,3]
[329607626,1718500328165,-10328.79,0.00022465,3]
[329607627,1718500328182,-753.03,0.00022465,3]
[329607628,1718500328193,-975.28,0.00022465,3]
[329607629,1718500328209,-500.0,0.00022465,3]
[329607630,1718500328221,-1000.02,0.00022465,3]
[329607631,1718500328234,-500.0,0.00022465,3]
[329607632,1718500328247,-500.0,0.00022465,3]
[329607633,1718500328258,-500.0,0.00022465,3]
[329607634,1718500328270,-500.0,0.00022465,3]
[329607635,1718500328283,-1668.64,0.00022465,3]
[329607636,1718500328302,-500.0,0.00022465,3]
[329607637,1718500328323,-500.0,0.00022465,3]
[329607638,1718500328335,-500.0,0.00022465,3]
[329607639,1718500328355,-1074.3,0.00022465,3]
[329607640,1718500328368,-500.0,0.00022465,3]
[329607641,1718500328380,-1014.22,0.00022465,3]
[329607642,1718500328391,-550.41,0.00022465,3]
[329607643,1718500328404,-500.0,0.00022465,3]
[329607644,1718500328420,-500.0,0.00022465,3]
[329607645,1718500328459,-500.0,0.00022465,3]
[329607646,1718500328494,-668.48,0.00022465,3]
[329607647,1718500328537,-500.0,0.00022465,3]
[329607648,1718500328559,-500.0,0.00022465,3]
[329607649,1718500328580,-500.0,0.00022465,3]
[329607650,1718500328612,-500.0,0.00022465,3]
[329607651,1718500328654,-1618.5,0.00022465,3]
[329607652,1718500328668,-500.0,0.00022465,3]
[329607653,1718500328680,-500.0,0.00022465,3]
[329607654,1718500328698,-500.0,0.00022465,3]
[329607655,1718500328712,-1463.48,0.00022465,3]
[329607656,1718500328734,-500.0,0.00022465,3]
[329607657,1718500328757,-5849.86,0.00022465,3]
[329607658,1718500328771,-500.0,0.00022465,3]
[329607659,1718500328785,-500.0,0.00022465,3]
[329607660,1718500328807,-715.92,0.00022465,3]
[329607661,1718500328831,-500.0,0.00022465,3]
[329607662,1718500328860,-668.84,0.00022465,3]
[329607663,1718500328917,-500.0,0.00022465,3]
[329607664,1718500328950,-1428.89,0.00022465,3]
[329607665,1718500328982,-500.0,0.00022465,3]
[329607666,1718500328994,-791.26,0.00022465,3]
[329607667,1718500329006,-500.0,0.00022465,3]
[329607668,1718500329026,-500.0,0.00022465,3]
[329607669,1718500329042,-500.0,0.00022465,3]
[329607670,1718500329056,-696.72,0.00022465,3]
[329607671,1718500329071,-500.0,0.00022465,3]
[329607672,1718500329089,-500.0,0.00022465,3]
[329607673,1718500329114,-1074.92,0.00022465,3]
[329607674,1718500329140,-500.0,0.00022465,3]
[329607675,1718500329162,-500.0,0.00022465,3]
[329607676,1718500329174,-549.09,0.00022465,3]
[329607677,1718500329187,-500.0,0.00022465,3]
[329607678,1718500329199,-500.0,0.00022465,3]
[329607679,1718500329212,-500.0,0.00022465,3]
[329607680,1718500329226,-500.0,0.00022465,3]
[329607681,1718500329238,-500.0,0.00022465,3]
[329607682,1718500329252,-1566.15,0.00022465,3]
[329607683,1718500329277,-500.0,0.00022465,3]
[329607684,1718500329292,-500.0,0.00022465,3]
[329607685,1718500329303,-500.0,0.00022465,3]
[329607686,1718500329318,-500.0,0.00022465,3]
[329607687,1718500329334,-500.0,0.00022465,3]
[329607688,1718500329349,-556.32,0.00022465,3]
[329607689,1718500329361,-500.0,0.00022465,3]
[329607690,1718500329377,-500.0,0.00022465,3]
[329607691,1718500329394,-617.26,0.00022465,3]
[329607692,1718500329416,-1557.08,0.00022465,3]
[329607693,1718500329438,-740.36,0.00022465,3]
[329607694,1718500329453,-911.54,0.00022465,3]
[329607695,1718500329470,-891.72,0.00022465,3]
[329607696,1718500329486,-386.63122649,0.00022465,3]
[329607697,1718500329498,-500.0,0.00022465,3]
[329607698,1718500329516,-265.52326603,0.00022465,3]
[329607699,1718500329532,-1476.81,0.00022465,3]
[329607700,1718500329553,-500.0,0.00022465,3]
[329607701,1718500329571,-500.0,0.00022465,3]
[329607702,1718500329591,-463.97883916,0.00022465,3]
[329607703,1718500329603,-500.0,0.00022465,3]
[329607704,1718500329616,-959.59,0.00022465,3]
[329607705,1718500329642,-3411.92,0.00022465,3]
[329607706,1718500329669,-500.0,0.00022465,3]
[329607707,1718500329680,-500.0,0.00022465,3]
[329607708,1718500329691,-500.0,0.00022465,3]
[329607709,1718500329706,-715.6,0.00022465,3]
[329607710,1718500329727,-500.0,0.00022465,3]
[329607711,1718500329741,-500.0,0.00022465,3]
[329607712,1718500329753,-500.0,0.00022465,3]
[329607713,1718500329777,-500.0,0.00022465,3]
[329607714,1718500329791,-500.0,0.00022465,3]
[329607715,1718500329824,-173.55245156,0.00022465,3]
[329607716,1718500329857,-500.0,0.00022465,3]
[329607717,1718500329881,-508.42638592,0.00022465,3]
[329607718,1718500329912,-500.0,0.00022465,3]
[329607719,1718500329941,-716.84,0.00022465,3]
[329607720,1718500329960,-500.0,0.00022465,3]
[329607721,1718500329975,-9209.12,0.00022465,3]
[329607722,1718500329993,-500.0,0.00022465,3]
[329607723,1718500330015,-545.4868249,0.00022465,3]
[329607724,1718500330032,-500.0,0.00022465,3]
[329607725,1718500330044,-500.0,0.00022465,3]
[329607726,1718500330062,-500.0,0.00022465,3]
[329607727,1718500330076,-500.0,0.00022465,3]
[329607728,1718500330093,-1858.4,0.00022465,3]
[329607729,1718500330136,-500.0,0.00022465,3]
[329607730,1718500330152,-500.0,0.00022465,3]
[329607731,1718500330165,-500.0,0.00022465,3]
[329607732,1718500330189,-500.0,0.00022465,3]
[329607733,1718500330228,-500.0,0.00022465,3]
[329607734,1718500330240,-500.0,0.00022465,3]
[329607735,1718500330257,-500.0,0.00022465,3]
[329607736,1718500330270,-500.0,0.00022465,3]
[329607737,1718500330293,-616.59,0.00022465,3]
[329607738,1718500330319,-500.0,0.00022465,3]
[329607739,1718500330333,-560.46,0.00022465,3]
[329607740,1718500330347,-1029.45,0.00022465,3]
[329607741,1718500330360,-739.07,0.00022465,3]
[329607742,1718500330396,-2193.53,0.00022465,3]
[329607743,1718500330414,-500.0,0.00022465,3]
[329607744,1718500330428,-500.0,0.00022465,3]
[329607745,1718500330476,-500.0,0.00022465,3]
[329607746,1718500330507,-912.6,0.00022465,3]
[329607747,1718500330520,-500.0,0.00022465,3]
[329607748,1718500330533,-500.0,0.00022465,3]
[329607749,1718500330545,-500.0,0.00022465,3]
[329607750,1718500330564,-543.82,0.00022465,3]
[329607751,1718500330579,-500.0,0.00022465,3]
[329607752,1718500330590,-500.0,0.00022465,3]
[329607753,1718500330604,-500.0,0.00022465,3]
[329607754,1718500330627,-500.0,0.00022465,3]
[329607755,1718500330642,-1095.8,0.00022465,3]
[329607756,1718500330672,-500.0,0.00022465,3]
[329607757,1718500330699,-500.0,0.00022465,3]
[329607758,1718500330714,-1659.54,0.00022465,3]
[329607759,1718500330734,-630.55018368,0.00022465,3]
[329607760,1718500330768,-500.0,0.00022465,3]
[329607761,1718500330792,-1126.66,0.00022465,3]
[329607762,1718500330816,-639.63,0.00022465,3]
[329607763,1718500330833,-605.83,0.00022465,3]
[329607764,1718500330849,-513.01681491,0.00022465,3]
[329607765,1718500330867,-500.0,0.00022465,3]
[329607766,1718500330886,-1641.23,0.00022465,3]
[329607767,1718500330905,-500.0,0.00022465,3]
[329607768,1718500330961,-1073.33,0.00022465,3]
[329607769,1718500330973,-500.0,0.00022465,3]
[329607770,1718500330990,-939.26,0.00022465,3]
[329607771,1718500331002,-931.47,0.00022465,3]
[329607772,1718500331018,-500.0,0.00022465,3]
[329607773,1718500331039,-500.0,0.00022465,3]
[329607774,1718500331077,-624.42309825,0.00022465,3]
[329607775,1718500331105,-635.73,0.00022465,3]
[329607776,1718500331123,-500.0,0.00022465,3]
[329607777,1718500331153,-500.0,0.00022465,3]
[329607778,1718500331180,-1601.78,0.00022465,3]
[329607779,1718500331191,-500.0,0.00022465,3]
[329607780,1718500331207,-500.0,0.00022465,3]
[329607781,1718500331230,-1587.76,0.00022465,3]
[329607782,1718500331247,-500.0,0.00022465,3]
[329607783,1718500331263,-500.0,0.00022465,3]
[329607784,1718500331278,-1481.49,0.00022465,3]
[329607785,1718500331297,-500.0,0.00022465,3]
[329607786,1718500331309,-844.64,0.00022465,3]
[329607787,1718500331326,-500.0,0.00022465,3]
[329607788,1718500331339,-500.0,0.00022465,3]
[329607789,1718500331357,-563.16,0.00022465,3]
[329607790,1718500331370,-500.0,0.00022465,3]
[329607791,1718500331383,-380.2876034,0.00022465,3]
[329607792,1718500331397,-500.0,0.00022465,3]
[329607793,1718500331418,-500.0,0.00022465,3]
[329607794,1718500331432,-526.5696639,0.00022465,3]
[329607795,1718500331444,-899.57,0.00022465,3]
[329607796,1718500331459,-797.55,0.00022465,3]
[329607797,1718500331477,-1303.62,0.00022465,3]
[329607798,1718500331488,-500.0,0.00022465,3]
[329607799,1718500331512,-500.0,0.00022465,3]
[329607800,1718500331526,-500.0,0.00022465,3]
[329607801,1718500331546,-500.0,0.00022465,3]
[329607802,1718500331565,-500.0,0.00022465,3]
[329607803,1718500331580,-669.61,0.00022465,3]
[329607804,1718500331593,-500.0,0.00022465,3]
[329607805,1718500331611,-500.0,0.00022465,3]
[329607806,1718500331739,-500.0,0.00022465,3]
[329607807,1718500331752,-500.0,0.00022465,3]
[329607808,1718500331765,-500.0,0.00022465,7]
[329607809,1718500331780,-500.0,0.00022465,3]
[329607810,1718500331792,-518.81408757,0.00022465,3]
[329607811,1718500331805,-500.0,0.00022465,3]
[329607812,1718500331818,-500.0,0.00022465,3]
[329607813,1718500331833,-500.0,0.00022465,3]
[329607814,1718500331845,-500.0,0.00022465,3]
[329607815,1718500331858,-500.0,0.00022465,3]
[329607816,1718500331877,-219.50827965,0.00022465,3]
[329607817,1718500331890,-500.0,0.00022465,3]
[329607818,1718500331903,-682.78,0.00022465,3]
[329607819,1718500331917,-500.0,0.00022465,3]
[329607820,1718500331931,-930.8,0.00022465,3]
[329607821,1718500331955,-962.72,0.00022465,3]
[329607822,1718500331974,-613.32,0.00022465,3]
[329607823,1718500331997,-500.0,0.00022465,3]
[329607824,1718500332015,-500.0,0.00022465,3]
[329607825,1718500332033,-500.0,0.00022465,3]
[329607826,1718500332047,-500.0,0.00022465,3]
[329607827,1718500332058,-500.0,0.00022465,3]
[329607828,1718500332068,-540.81,0.00022465,3]
[329607829,1718500332088,-500.0,0.00022465,3]
[329607830,1718500332101,-658.7,0.00022465,3]
[329607831,1718500332112,-4612.85,0.00022465,3]
[329607832,1718500332127,-500.0,0.00022465,3]
[329607833,1718500332143,-543.12,0.00022465,3]
[329607834,1718500332155,-675.53,0.00022465,3]
[329607835,1718500332166,-1119.62,0.00022465,3]
[329607836,1718500332181,-2380.87,0.00022465,3]
[329607837,1718500332194,-2109.62,0.00022465,3]
[329607838,1718500332216,-500.0,0.00022465,3]
[329607839,1718500332230,-500.0,0.00022465,3]
[329607840,1718500332246,-500.0,0.00022465,3]
[329607841,1718500332258,-544.8,0.00022465,3]
[329607842,1718500332270,-500.0,0.00022465,3]
[329607843,1718500332283,-500.0,0.00022465,3]
[329607844,1718500332299,-585.02,0.00022465,3]
[329607845,1718500332312,-500.0,0.00022465,3]
[329607846,1718500332325,-500.0,0.00022465,3]
[329607847,1718500332337,-500.0,0.00022465,3]
[329607848,1718500332348,-500.0,0.00022465,3]
[329607849,1718500332372,-922.29,0.00022465,3]
[329607850,1718500332387,-500.0,0.00022465,3]
[329607851,1718500332401,-500.0,0.00022465,3]
[329607852,1718500332413,-554.14,0.00022465,3]
[329607853,1718500332440,-832.03,0.00022465,3]
[329607854,1718500332452,-500.0,0.00022465,3]
[329607855,1718500332464,-500.0,0.00022465,3]
[329607856,1718500332481,-831.93,0.00022465,3]
[329607857,1718500332494,-1266.5,0.00022465,3]
[329607858,1718500332514,-500.0,0.00022465,3]
[329607859,1718500332529,-500.0,0.00022465,3]
[329607860,1718500332552,-532.12308859,0.00022465,3]
[329607861,1718500332566,-1502.09,0.00022465,3]
[329607862,1718500332589,-911.68,0.00022465,3]
[329607863,1718500332604,-1214.3,0.00022465,3]
[329607864,1718500332615,-814.64,0.00022465,3]
[329607865,1718500332627,-500.0,0.00022465,3]
[329607866,1718500332641,-560.05,0.00022465,3]
[329607867,1718500332656,-500.0,0.00022465,3]
[329607868,1718500332668,-500.0,0.00022465,3]
[329607869,1718500332682,-500.0,0.00022465,3]
[329607870,1718500332696,-500.0,0.00022465,3]
[329607871,1718500332716,-1461.36,0.00022465,3]
[329607872,1718500332737,-749.61,0.00022465,3]
[329607873,1718500332754,-500.0,0.00022465,3]
[329607874,1718500332787,-500.0,0.00022465,3]
[329607875,1718500332819,-508.54,0.00022465,3]
[329607876,1718500332834,-500.0,0.00022465,3]